[Event "Early-Titled-Tuesday-Blitz-October-03-2023"]
[Site "Chess.com"]
[Date "2023.10.03"]
[Round "9"]
[White "Malysch"]
[Black "MMAHDI2013"]
[Result "1/2-1/2"]
[WhiteElo "2518"]
[BlackElo "2424"]
[TimeControl "180+1"]
[EndTime "9:47:27 PDT"]
[Termination "Game drawn by repetition"]

1. d4 {[%clk 0:03:00.9]} 1... Nf6 {[%clk 0:02:59]} 2. c4 {[%clk 0:03:01.4]} 2...
e6 {[%clk 0:02:59]} 3. g3 {[%clk 0:03:01.6]} 3... Bb4+ {[%clk 0:02:58.7]} 4. Nd2
{[%clk 0:03:01]} 4... d5 {[%clk 0:02:55.5]} 5. Bg2 {[%clk 0:03:01]} 5... O-O
{[%clk 0:02:54.8]} 6. Nf3 {[%clk 0:03:01.2]} 6... dxc4 {[%clk 0:02:53.3]} 7. Qc2
{[%clk 0:03:01]} 7... Bxd2+ {[%clk 0:02:40.7]} 8. Bxd2 {[%clk 0:02:57.3]} 8...
b5 {[%clk 0:02:39.8]} 9. a4 {[%clk 0:02:55.9]} 9... Bb7 {[%clk 0:01:59.2]} 10.
axb5 {[%clk 0:02:54]} 10... c6 {[%clk 0:01:58.9]} 11. Ne5 {[%clk 0:02:37]} 11...
Nd5 {[%clk 0:01:57.1]} 12. bxc6 {[%clk 0:02:11.2]} 12... Nxc6 {[%clk 0:01:56]}
13. Nxc6 {[%clk 0:02:11.3]} 13... Bxc6 {[%clk 0:01:56.2]} 14. Qxc4 {[%clk
0:02:10.7]} 14... Rc8 {[%clk 0:01:53.7]} 15. O-O {[%clk 0:01:59.2]} 15... Ne3
{[%clk 0:01:41.9]} 16. Bxe3 {[%clk 0:01:04.6]} 16... Bxg2 {[%clk 0:01:40.7]} 17.
Qxc8 {[%clk 0:01:04.2]} 17... Qxc8 {[%clk 0:01:39.4]} 18. Kxg2 {[%clk
0:01:04.9]} 18... Qb7+ {[%clk 0:01:32.2]} 19. Kg1 {[%clk 0:00:55.3]} 19... Ra8
{[%clk 0:01:32]} 20. Ra2 {[%clk 0:00:42]} 20... Qb5 {[%clk 0:01:23.8]} 21. Rfa1
{[%clk 0:00:39.1]} 21... a5 {[%clk 0:01:22.1]} 22. Kf1 {[%clk 0:00:37.1]} 22...
a4 {[%clk 0:01:15.2]} 23. Ra3 {[%clk 0:00:28.7]} 23... h5 {[%clk 0:00:40.5]} 24.
b3 {[%clk 0:00:25.1]} 24... axb3 {[%clk 0:00:25.6]} 25. Rxa8+ {[%clk 0:00:23.5]}
25... Kh7 {[%clk 0:00:26]} 26. Rb1 {[%clk 0:00:22.6]} 26... Qd5 {[%clk
0:00:22.2]} 27. f3 {[%clk 0:00:17.8]} 27... Qxa8 {[%clk 0:00:22]} 28. Rxb3
{[%clk 0:00:18]} 28... Qa2 {[%clk 0:00:21.6]} 29. Rd3 {[%clk 0:00:16.6]} 29...
Kg6 {[%clk 0:00:21.6]} 30. Kf2 {[%clk 0:00:15.5]} 30... Kf5 {[%clk 0:00:20.5]}
31. h3 {[%clk 0:00:12.6]} 31... g5 {[%clk 0:00:20.5]} 32. g4+ {[%clk 0:00:12.8]}
32... Kg6 {[%clk 0:00:21]} 33. Rd2 {[%clk 0:00:10.9]} 33... Qa1 {[%clk
0:00:20.6]} 34. Kg2 {[%clk 0:00:11.1]} 34... h4 {[%clk 0:00:20.3]} 35. Bf2
{[%clk 0:00:11.4]} 35... f6 {[%clk 0:00:19.9]} 36. e4 {[%clk 0:00:11.4]} 36...
Qc1 {[%clk 0:00:19.6]} 37. Re2 {[%clk 0:00:11.2]} 37... Qd1 {[%clk 0:00:19.5]}
38. Ra2 {[%clk 0:00:10.9]} 38... Qb3 {[%clk 0:00:19.2]} 39. Ra6 {[%clk
0:00:10.6]} 39... Qc4 {[%clk 0:00:19]} 40. Rb6 {[%clk 0:00:10.3]} 40... Kf7
{[%clk 0:00:18.9]} 41. Rd6 {[%clk 0:00:10.3]} 41... Ke7 {[%clk 0:00:19]} 42. Rb6
{[%clk 0:00:09.8]} 42... Kf7 {[%clk 0:00:18.5]} 43. Rb7+ {[%clk 0:00:10]} 43...
Kg6 {[%clk 0:00:18.7]} 44. Rb6 {[%clk 0:00:10.9]} 44... Qa2 {[%clk 0:00:14.8]}
45. Rd6 {[%clk 0:00:10.9]} 45... Kf7 {[%clk 0:00:14.1]} 46. d5 {[%clk
0:00:10.9]} 46... exd5 {[%clk 0:00:12]} 47. Rxd5 {[%clk 0:00:11.8]} 47... Qb3
{[%clk 0:00:11.1]} 48. Rd6 {[%clk 0:00:11.5]} 48... Qa2 {[%clk 0:00:11]} 49.
Rd7+ {[%clk 0:00:11.4]} 49... Kg6 {[%clk 0:00:11.1]} 50. Ra7 {[%clk 0:00:11.8]}
50... Qb2 {[%clk 0:00:10.8]} 51. Ra6 {[%clk 0:00:12]} 51... Qc2 {[%clk
0:00:10.1]} 52. Rb6 {[%clk 0:00:12.9]} 52... Qd2 {[%clk 0:00:10]} 53. e5 {[%clk
0:00:13.1]} 53... Kf7 {[%clk 0:00:07.3]} 54. Rxf6+ {[%clk 0:00:14]} 54... Ke7
{[%clk 0:00:07.6]} 55. Rf5 {[%clk 0:00:14.9]} 55... Ke6 {[%clk 0:00:07.1]} 56.
Rf8 {[%clk 0:00:13.7]} 56... Kxe5 {[%clk 0:00:07]} 57. Rf5+ {[%clk 0:00:14.6]}
57... Ke6 {[%clk 0:00:06.8]} 58. Rf8 {[%clk 0:00:15.5]} 58... Ke7 {[%clk
0:00:06.3]} 59. Rf5 {[%clk 0:00:16.4]} 59... Qc1 {[%clk 0:00:05.2]} 60. Rd5
{[%clk 0:00:16.2]} 60... Ke6 {[%clk 0:00:05.4]} 61. Rf5 {[%clk 0:00:17.1]} 61...
Ke7 {[%clk 0:00:05.4]} 62. Re5+ {[%clk 0:00:16.6]} 62... Kf6 {[%clk 0:00:05.6]}
63. Rf5+ {[%clk 0:00:17.5]} 63... Ke6 {[%clk 0:00:05.8]} 64. Rf8 {[%clk
0:00:17.5]} 64... Ke7 {[%clk 0:00:06.1]} 65. Rf5 {[%clk 0:00:17.8]} 65... Ke6
{[%clk 0:00:06.6]} 66. Rf8 {[%clk 0:00:17.5]} 66... Ke7 {[%clk 0:00:07]} 67. Rf5
{[%clk 0:00:17.3]} 67... Ke6 {[%clk 0:00:07.3]} 1/2-1/2

[Event "Early-Titled-Tuesday-Blitz-October-03-2023"]
[Site "Chess.com"]
[Date "2023.10.03"]
[Round "9"]
[White "crazy_m_attack"]
[Black "Kyrie-Eleven"]
[Result "1-0"]
[WhiteElo "2408"]
[BlackElo "2291"]
[TimeControl "180+1"]
[EndTime "9:47:33 PDT"]
[Termination "crazy_m_attack won by resignation"]

1. e4 {[%clk 0:03:00.9]} 1... e6 {[%clk 0:03:00.2]} 2. d4 {[%clk 0:03:00.6]}
2... d5 {[%clk 0:02:59.5]} 3. Nc3 {[%clk 0:03:01]} 3... Bb4 {[%clk 0:02:58.7]}
4. a3 {[%clk 0:03:01.2]} 4... Bxc3+ {[%clk 0:02:55.6]} 5. bxc3 {[%clk
0:03:02.1]} 5... dxe4 {[%clk 0:02:56.3]} 6. Qg4 {[%clk 0:03:02.1]} 6... Nf6
{[%clk 0:02:57]} 7. Qxg7 {[%clk 0:03:02.5]} 7... Rg8 {[%clk 0:02:57]} 8. Qh6
{[%clk 0:03:03.1]} 8... c5 {[%clk 0:02:57.2]} 9. Ne2 {[%clk 0:03:02.4]} 9... Rg6
{[%clk 0:02:53.2]} 10. Qd2 {[%clk 0:03:01.8]} 10... Nc6 {[%clk 0:02:52.9]} 11.
dxc5 {[%clk 0:03:02.1]} 11... Qxd2+ {[%clk 0:02:51.2]} 12. Bxd2 {[%clk 0:03:02]}
12... Bd7 {[%clk 0:02:50.9]} 13. Nd4 {[%clk 0:02:40.9]} 13... O-O-O {[%clk
0:02:40.3]} 14. Nb5 {[%clk 0:02:40.2]} 14... Kb8 {[%clk 0:02:38.3]} 15. O-O-O
{[%clk 0:02:33]} 15... Nd5 {[%clk 0:02:05.9]} 16. c4 {[%clk 0:02:28.3]} 16...
Nde7 {[%clk 0:01:53.9]} 17. Nd6 {[%clk 0:02:17.3]} 17... f5 {[%clk 0:01:49.1]}
18. Nf7 {[%clk 0:02:01]} 18... Rf8 {[%clk 0:01:47.4]} 19. Bf4+ {[%clk
0:01:59.7]} 19... Kc8 {[%clk 0:01:45.1]} 20. Nd6+ {[%clk 0:01:58.8]} 20... Kc7
{[%clk 0:01:40.2]} 21. Nxb7+ {[%clk 0:01:40.1]} 21... e5 {[%clk 0:00:53.6]} 22.
Bg3 {[%clk 0:01:30.5]} 22... f4 {[%clk 0:00:51.5]} 23. Bh4 {[%clk 0:01:25.7]}
23... Nf5 {[%clk 0:00:52.1]} 24. g3 {[%clk 0:01:25.8]} 24... Nxh4 {[%clk
0:00:50.3]} 25. gxh4 {[%clk 0:01:25.8]} 25... Bg4 {[%clk 0:00:49.9]} 26. Nd6
{[%clk 0:01:12.6]} 26... Bxd1 {[%clk 0:00:47.8]} 27. Kxd1 {[%clk 0:01:13.5]}
27... Rxd6+ {[%clk 0:00:45.9]} 28. cxd6+ {[%clk 0:01:13.3]} 28... Kxd6 {[%clk
0:00:46.8]} 29. Rg1 {[%clk 0:01:10.4]} 29... Rf7 {[%clk 0:00:43.7]} 30. Rg8
{[%clk 0:01:02.1]} 30... Nd4 {[%clk 0:00:40.7]} 31. Rd8+ {[%clk 0:00:37]} 31...
Kc7 {[%clk 0:00:40.3]} 32. Rd5 {[%clk 0:00:34.3]} 32... Nf3 {[%clk 0:00:39.6]}
33. Bg2 {[%clk 0:00:27.9]} 33... Nxh4 {[%clk 0:00:36.2]} 34. Bxe4 {[%clk
0:00:28]} 34... Re7 {[%clk 0:00:33.1]} 35. Rc5+ {[%clk 0:00:25]} 35... Kb6
{[%clk 0:00:30.3]} 36. Rc6+ {[%clk 0:00:25.2]} 36... Ka5 {[%clk 0:00:30.6]} 37.
Rh6 {[%clk 0:00:19.3]} 37... Ng6 {[%clk 0:00:28.5]} 38. Bxg6 {[%clk 0:00:17.8]}
38... hxg6 {[%clk 0:00:29.4]} 39. Rxg6 {[%clk 0:00:18.7]} 39... Rc7 {[%clk
0:00:26.1]} 40. Re6 {[%clk 0:00:18.7]} 40... Rxc4 {[%clk 0:00:20.6]} 41. Rxe5+
{[%clk 0:00:19.3]} 41... Ka4 {[%clk 0:00:21.5]} 42. f3 {[%clk 0:00:19.9]} 42...
Kxa3 {[%clk 0:00:21.1]} 43. Re4 {[%clk 0:00:20.4]} 43... Rxe4 {[%clk 0:00:19.8]}
44. fxe4 {[%clk 0:00:20.3]} 44... Kb4 {[%clk 0:00:20.7]} 45. Ke2 {[%clk
0:00:18.9]} 45... a5 {[%clk 0:00:20.7]} 46. h4 {[%clk 0:00:19.3]} 46... a4
{[%clk 0:00:19.9]} 47. h5 {[%clk 0:00:18.4]} 47... a3 {[%clk 0:00:20.2]} 48. h6
{[%clk 0:00:18]} 48... a2 {[%clk 0:00:20.2]} 49. c3+ {[%clk 0:00:18.4]} 49...
Kb3 {[%clk 0:00:17.6]} 50. h7 {[%clk 0:00:18.8]} 50... a1=Q {[%clk 0:00:18]} 51.
h8=Q {[%clk 0:00:19]} 51... Qb2+ {[%clk 0:00:17.3]} 52. Kf3 {[%clk 0:00:18.8]}
52... Qd2 {[%clk 0:00:18]} 53. Qb8+ {[%clk 0:00:17.2]} 53... Kc2 {[%clk
0:00:18.5]} 54. Qxf4 {[%clk 0:00:16.8]} 54... Qd1+ {[%clk 0:00:18.2]} 55. Kg3
{[%clk 0:00:16.7]} 55... Qg1+ {[%clk 0:00:17.7]} 56. Kh4 {[%clk 0:00:16.9]}
56... Qh1+ {[%clk 0:00:16.2]} 57. Kg5 {[%clk 0:00:17.5]} 57... Qg2+ {[%clk
0:00:15.7]} 58. Kf6 {[%clk 0:00:14.8]} 58... Qg8 {[%clk 0:00:15.4]} 59. e5
{[%clk 0:00:10.4]} 59... Kxc3 {[%clk 0:00:15.4]} 60. e6 {[%clk 0:00:08.4]} 60...
Qf8+ {[%clk 0:00:15.2]} 61. Kg5 {[%clk 0:00:07.5]} 61... Qg8+ {[%clk 0:00:13.3]}
62. Kf5 {[%clk 0:00:07.3]} 62... Qf8+ {[%clk 0:00:12.9]} 63. Ke4 {[%clk
0:00:07.1]} 63... Qb4+ {[%clk 0:00:12.4]} 64. Kf3 {[%clk 0:00:07.4]} 64... Qb7+
{[%clk 0:00:10.6]} 65. Qe4 {[%clk 0:00:07.8]} 65... Qe7 {[%clk 0:00:10.2]} 66.
Qc6+ {[%clk 0:00:04.8]} 66... Kd4 {[%clk 0:00:10]} 67. Qd7+ {[%clk 0:00:04.5]}
1-0

[Event "Early-Titled-Tuesday-Blitz-October-03-2023"]
[Site "Chess.com"]
[Date "2023.10.03"]
[Round "9"]
[White "Alexchess1984"]
[Black "Murad_Ibrahimli"]
[Result "0-1"]
[WhiteElo "2724"]
[BlackElo "2912"]
[TimeControl "180+1"]
[EndTime "9:47:37 PDT"]
[Termination "Murad_Ibrahimli won by resignation"]

1. e4 {[%clk 0:03:00.8]} 1... c5 {[%clk 0:02:59]} 2. c3 {[%clk 0:03:00.4]} 2...
d5 {[%clk 0:02:54.7]} 3. exd5 {[%clk 0:02:57.3]} 3... Qxd5 {[%clk 0:02:55.6]} 4.
d4 {[%clk 0:02:57.3]} 4... g6 {[%clk 0:02:53.4]} 5. Nf3 {[%clk 0:02:55.9]} 5...
Bg7 {[%clk 0:02:53]} 6. Nbd2 {[%clk 0:02:56.1]} 6... cxd4 {[%clk 0:02:50.9]} 7.
Bc4 {[%clk 0:02:56]} 7... Qd8 {[%clk 0:02:43.4]} 8. Nxd4 {[%clk 0:02:54.5]} 8...
Nh6 {[%clk 0:02:37.6]} 9. N2f3 {[%clk 0:02:52.6]} 9... O-O {[%clk 0:02:35.9]}
10. O-O {[%clk 0:02:49.3]} 10... Qc7 {[%clk 0:02:34.4]} 11. Qe2 {[%clk 0:02:44]}
11... Nf5 {[%clk 0:02:29.5]} 12. Re1 {[%clk 0:02:34.8]} 12... Nc6 {[%clk
0:02:23.8]} 13. Nxc6 {[%clk 0:02:31.2]} 13... bxc6 {[%clk 0:02:21.8]} 14. h3
{[%clk 0:02:21.6]} 14... Rb8 {[%clk 0:02:20.4]} 15. Ne5 {[%clk 0:02:07.6]} 15...
Nd6 {[%clk 0:02:15.6]} 16. Bb3 {[%clk 0:01:59.7]} 16... c5 {[%clk 0:02:15.2]}
17. Bf4 {[%clk 0:01:56.6]} 17... Rb6 {[%clk 0:01:55.9]} 18. Rad1 {[%clk
0:01:53.5]} 18... Ba6 {[%clk 0:01:53.1]} 19. c4 {[%clk 0:01:34.8]} 19... Bb7
{[%clk 0:01:45.8]} 20. Ba4 {[%clk 0:01:28.7]} 20... Bc8 {[%clk 0:01:29.7]} 21.
b3 {[%clk 0:01:24.8]} 21... Be6 {[%clk 0:01:25.9]} 22. Bg3 {[%clk 0:01:17.1]}
22... Qc8 {[%clk 0:01:19.3]} 23. Nf3 {[%clk 0:01:08.3]} 23... Nf5 {[%clk
0:01:17.6]} 24. Be5 {[%clk 0:01:08.3]} 24... f6 {[%clk 0:01:09.4]} 25. Bc3
{[%clk 0:01:04.9]} 25... h5 {[%clk 0:01:07]} 26. Bb5 {[%clk 0:00:59]} 26... Kf7
{[%clk 0:00:55.8]} 27. Ba4 {[%clk 0:00:54.3]} 27... Rd6 {[%clk 0:00:44.6]} 28.
Rxd6 {[%clk 0:00:51.8]} 28... Nxd6 {[%clk 0:00:39]} 29. Ba1 {[%clk 0:00:41]}
29... Nf5 {[%clk 0:00:32.5]} 30. Qb2 {[%clk 0:00:40.7]} 30... Bh8 {[%clk
0:00:27.4]} 31. Qe2 {[%clk 0:00:40.3]} 31... h4 {[%clk 0:00:25.7]} 32. Bc3
{[%clk 0:00:37.3]} 32... Rd8 {[%clk 0:00:25.2]} 33. Qe4 {[%clk 0:00:36.1]} 33...
g5 {[%clk 0:00:20.6]} 34. Bc6 {[%clk 0:00:32.2]} 34... Bg7 {[%clk 0:00:16.4]}
35. Bd5 {[%clk 0:00:31.9]} 35... Bxd5 {[%clk 0:00:15.4]} 36. cxd5 {[%clk
0:00:32.7]} 36... Qd7 {[%clk 0:00:16]} 37. Rd1 {[%clk 0:00:28.9]} 37... Nd6
{[%clk 0:00:16.2]} 38. Qe3 {[%clk 0:00:21]} 38... Rc8 {[%clk 0:00:15.6]} 39. Re1
{[%clk 0:00:18.1]} 39... Rc7 {[%clk 0:00:15.7]} 40. Qd3 {[%clk 0:00:15.3]} 40...
Qf5 {[%clk 0:00:15.6]} 41. Qd2 {[%clk 0:00:15.5]} 41... Rd7 {[%clk 0:00:12.9]}
42. Qd1 {[%clk 0:00:13.2]} 42... Ne8 {[%clk 0:00:12.9]} 43. Qe2 {[%clk
0:00:11.8]} 43... Qxd5 {[%clk 0:00:12.2]} 44. Bb2 {[%clk 0:00:11.1]} 44... Nd6
{[%clk 0:00:12.2]} 45. Qc2 {[%clk 0:00:09.9]} 45... Qf5 {[%clk 0:00:11.8]} 46.
Qe2 {[%clk 0:00:09.9]} 46... e5 {[%clk 0:00:10.8]} 47. Qa6 {[%clk 0:00:09.6]}
47... Qe6 {[%clk 0:00:10.9]} 48. Nd2 {[%clk 0:00:08.6]} 48... Nf5 {[%clk
0:00:11.2]} 49. Qxe6+ {[%clk 0:00:07.9]} 49... Kxe6 {[%clk 0:00:12]} 50. Ne4
{[%clk 0:00:08.8]} 50... Bf8 {[%clk 0:00:11.3]} 51. Ba3 {[%clk 0:00:08.4]} 51...
Rd5 {[%clk 0:00:10.5]} 52. Rc1 {[%clk 0:00:07.7]} 52... Nd4 {[%clk 0:00:10.6]}
53. Kf1 {[%clk 0:00:07.3]} 53... Kf5 {[%clk 0:00:09.1]} 54. Nxc5 {[%clk
0:00:05.9]} 54... Nb5 {[%clk 0:00:09.6]} 55. Bb4 {[%clk 0:00:04.9]} 55... a5
{[%clk 0:00:10.3]} 56. a4 {[%clk 0:00:05.2]} 56... axb4 {[%clk 0:00:09.9]} 57.
axb5 {[%clk 0:00:05.2]} 57... Rxc5 {[%clk 0:00:10.2]} 0-1

[Event "Early-Titled-Tuesday-Blitz-October-03-2023"]
[Site "Chess.com"]
[Date "2023.10.03"]
[Round "9"]
[White "Kgutierrez95"]
[Black "Kostya0705"]
[Result "0-1"]
[WhiteElo "2231"]
[BlackElo "2602"]
[TimeControl "180+1"]
[EndTime "9:47:39 PDT"]
[Termination "Kostya0705 won on time"]

1. e4 {[%clk 0:02:58.3]} 1... c5 {[%clk 0:02:59.2]} 2. Nf3 {[%clk 0:02:56.9]}
2... e6 {[%clk 0:02:59.2]} 3. d4 {[%clk 0:02:56.3]} 3... cxd4 {[%clk 0:02:59.1]}
4. Nxd4 {[%clk 0:02:57.2]} 4... Nc6 {[%clk 0:02:59.2]} 5. Nc3 {[%clk 0:02:56.2]}
5... Qc7 {[%clk 0:02:59.6]} 6. Ndb5 {[%clk 0:02:55.3]} 6... Qb8 {[%clk 0:02:59]}
7. Be2 {[%clk 0:02:50.7]} 7... a6 {[%clk 0:02:58.6]} 8. Nd4 {[%clk 0:02:46.1]}
8... Nf6 {[%clk 0:02:58.2]} 9. O-O {[%clk 0:02:44.7]} 9... Be7 {[%clk 0:02:57]}
10. Be3 {[%clk 0:02:38]} 10... O-O {[%clk 0:02:56.2]} 11. f4 {[%clk 0:02:36.6]}
11... d6 {[%clk 0:02:54.2]} 12. Kh1 {[%clk 0:02:23.7]} 12... Qc7 {[%clk
0:02:48]} 13. f5 {[%clk 0:02:18.9]} 13... Nxd4 {[%clk 0:02:44.7]} 14. Qxd4
{[%clk 0:02:03.5]} 14... e5 {[%clk 0:02:36.4]} 15. Qd2 {[%clk 0:01:58.6]} 15...
b5 {[%clk 0:02:29.7]} 16. a3 {[%clk 0:01:55]} 16... Bb7 {[%clk 0:02:28.6]} 17.
Bf3 {[%clk 0:01:48.9]} 17... Rfd8 {[%clk 0:02:26.9]} 18. Bg5 {[%clk 0:01:48.1]}
18... Rac8 {[%clk 0:02:19.4]} 19. Bxf6 {[%clk 0:01:45.7]} 19... Bxf6 {[%clk
0:02:18.3]} 20. Rad1 {[%clk 0:01:41.9]} 20... d5 {[%clk 0:02:10]} 21. exd5
{[%clk 0:01:35.3]} 21... e4 {[%clk 0:02:06.9]} 22. Bxe4 {[%clk 0:01:31.7]} 22...
Bxc3 {[%clk 0:02:00.8]} 23. bxc3 {[%clk 0:01:26.3]} 23... Qxc3 {[%clk
0:02:01.7]} 24. Qg5 {[%clk 0:01:25.9]} 24... f6 {[%clk 0:01:57.9]} 25. Qh5
{[%clk 0:01:08.2]} 25... Qe5 {[%clk 0:01:41.6]} 26. Rfe1 {[%clk 0:01:01.4]}
26... Rc3 {[%clk 0:01:34.9]} 27. Bf3 {[%clk 0:00:50.8]} 27... Qd6 {[%clk
0:01:29]} 28. Re8+ {[%clk 0:00:44.7]} 28... Rxe8 {[%clk 0:01:28.7]} 29. Qxe8+
{[%clk 0:00:44.7]} 29... Qf8 {[%clk 0:01:29.2]} 30. Qe6+ {[%clk 0:00:30.1]}
30... Kh8 {[%clk 0:01:26.6]} 31. d6 {[%clk 0:00:26.7]} 31... Bxf3 {[%clk
0:01:24]} 32. gxf3 {[%clk 0:00:26.3]} 32... Qa8 {[%clk 0:01:19.5]} 33. Qe4
{[%clk 0:00:19.8]} 33... Qxe4 {[%clk 0:01:09.6]} 34. fxe4 {[%clk 0:00:20.7]}
34... Rc8 {[%clk 0:01:09.6]} 35. d7 {[%clk 0:00:19.2]} 35... Rd8 {[%clk
0:01:09.6]} 36. Rd6 {[%clk 0:00:17.8]} 36... Kg8 {[%clk 0:01:10.1]} 37. Rxa6
{[%clk 0:00:10.2]} 37... Rxd7 {[%clk 0:01:10.1]} 38. Rb6 {[%clk 0:00:10.7]}
38... Rd2 {[%clk 0:01:06.2]} 39. Rxb5 {[%clk 0:00:09.8]} 39... Rxc2 {[%clk
0:01:06.4]} 40. Rb4 {[%clk 0:00:09]} 40... Ra2 {[%clk 0:01:05.9]} 41. a4 {[%clk
0:00:09.3]} 41... Kf7 {[%clk 0:01:06.8]} 42. Rd4 {[%clk 0:00:09.1]} 42... Ke7
{[%clk 0:01:07]} 43. Kg1 {[%clk 0:00:08.8]} 43... h5 {[%clk 0:01:06.6]} 44. h4
{[%clk 0:00:08]} 44... Ke8 {[%clk 0:01:04.8]} 45. Kf1 {[%clk 0:00:08.2]} 45...
Ke7 {[%clk 0:01:04.8]} 46. Ke1 {[%clk 0:00:08.6]} 46... Rh2 {[%clk 0:01:01]} 47.
a5 {[%clk 0:00:08.1]} 47... Ra2 {[%clk 0:01:01.6]} 48. Rd5 {[%clk 0:00:08.3]}
48... Ra4 {[%clk 0:01:02.2]} 49. Kd1 {[%clk 0:00:08.6]} 49... Rxe4 {[%clk
0:01:01.5]} 50. Rb5 {[%clk 0:00:08.7]} 50... Rxh4 {[%clk 0:01:00.5]} 51. Rb7+
{[%clk 0:00:08.3]} 51... Kd6 {[%clk 0:01:01]} 52. a6 {[%clk 0:00:08.6]} 52...
Ra4 {[%clk 0:01:01]} 53. a7 {[%clk 0:00:08.8]} 53... Ke5 {[%clk 0:01:01.5]} 54.
Rxg7 {[%clk 0:00:08.1]} 54... Kxf5 {[%clk 0:01:02]} 55. Kc2 {[%clk 0:00:08.1]}
55... h4 {[%clk 0:01:01.7]} 56. Kb3 {[%clk 0:00:07.8]} 56... Ra1 {[%clk
0:01:00.9]} 57. Kb2 {[%clk 0:00:05.8]} 57... Ra6 {[%clk 0:01:00.5]} 58. Rh7
{[%clk 0:00:04.9]} 58... Kg4 {[%clk 0:00:59.8]} 59. Kb3 {[%clk 0:00:04.4]} 59...
h3 {[%clk 0:00:59.1]} 60. Kc3 {[%clk 0:00:04]} 60... f5 {[%clk 0:00:59.1]} 61.
Kd3 {[%clk 0:00:03]} 61... Kg3 {[%clk 0:00:54.1]} 62. Rg7+ {[%clk 0:00:02.8]}
62... Kf3 {[%clk 0:00:50.6]} 63. Rh7 {[%clk 0:00:03.4]} 63... Kg2 {[%clk
0:00:50.5]} 64. Rg7+ {[%clk 0:00:03.8]} 64... Kh1 {[%clk 0:00:49.6]} 65. Ke3
{[%clk 0:00:03]} 65... h2 {[%clk 0:00:48]} 66. Kf2 {[%clk 0:00:03]} 66... f4
{[%clk 0:00:44.6]} 67. Kf1 {[%clk 0:00:02.8]} 67... Ra2 {[%clk 0:00:42.7]} 68.
Rh7 {[%clk 0:00:02.1]} 68... f3 {[%clk 0:00:41.3]} 69. Rg7 {[%clk 0:00:01.7]}
69... Ra5 {[%clk 0:00:31.8]} 70. Rh7 {[%clk 0:00:01.4]} 70... Ra2 {[%clk
0:00:31.8]} 0-1

[Event "Early-Titled-Tuesday-Blitz-October-03-2023"]
[Site "Chess.com"]
[Date "2023.10.03"]
[Round "9"]
[White "bascheyaro"]
[Black "Grischuk"]
[Result "1-0"]
[WhiteElo "2841"]
[BlackElo "3000"]
[TimeControl "180+1"]
[EndTime "9:47:40 PDT"]
[Termination "bascheyaro won on time"]

1. d4 {[%clk 0:03:00.9]} 1... e6 {[%clk 0:02:58.7]} 2. Nf3 {[%clk 0:03:01]} 2...
c5 {[%clk 0:02:58.7]} 3. c3 {[%clk 0:03:00.8]} 3... Nf6 {[%clk 0:02:58.6]} 4.
Bf4 {[%clk 0:03:01]} 4... b6 {[%clk 0:02:49.1]} 5. e3 {[%clk 0:03:00.5]} 5...
Bb7 {[%clk 0:02:49.1]} 6. Nbd2 {[%clk 0:03:00.6]} 6... cxd4 {[%clk 0:02:46.7]}
7. cxd4 {[%clk 0:02:58]} 7... Be7 {[%clk 0:02:45.1]} 8. Bd3 {[%clk 0:02:57.9]}
8... Nh5 {[%clk 0:02:36.3]} 9. Bg3 {[%clk 0:02:45.8]} 9... O-O {[%clk
0:02:29.1]} 10. Ne5 {[%clk 0:02:40.8]} 10... g6 {[%clk 0:02:27.9]} 11. O-O
{[%clk 0:02:14.3]} 11... d6 {[%clk 0:02:27.4]} 12. Nef3 {[%clk 0:02:14.6]} 12...
Nd7 {[%clk 0:02:20.5]} 13. Rc1 {[%clk 0:02:13.6]} 13... Nxg3 {[%clk 0:02:13.7]}
14. hxg3 {[%clk 0:02:10.4]} 14... Nf6 {[%clk 0:02:13.9]} 15. Qe2 {[%clk
0:02:09.4]} 15... a6 {[%clk 0:02:13.2]} 16. Rc2 {[%clk 0:02:08.4]} 16... b5
{[%clk 0:02:11.9]} 17. Rfc1 {[%clk 0:02:08.4]} 17... Qb6 {[%clk 0:02:08.4]} 18.
a3 {[%clk 0:02:02.9]} 18... Rfc8 {[%clk 0:02:05.9]} 19. Rxc8+ {[%clk 0:01:59.6]}
19... Rxc8 {[%clk 0:02:06.8]} 20. Rxc8+ {[%clk 0:01:58.9]} 20... Bxc8 {[%clk
0:02:07.7]} 21. Qd1 {[%clk 0:01:59]} 21... Bb7 {[%clk 0:02:06.4]} 22. Qc2 {[%clk
0:01:56.5]} 22... Kg7 {[%clk 0:02:04.2]} 23. Kf1 {[%clk 0:01:55]} 23... Qc6
{[%clk 0:01:53.6]} 24. Qxc6 {[%clk 0:01:52.4]} 24... Bxc6 {[%clk 0:01:54.5]} 25.
b4 {[%clk 0:01:36]} 25... Bd8 {[%clk 0:01:49.3]} 26. Nb3 {[%clk 0:01:35.2]}
26... Nd5 {[%clk 0:01:46.8]} 27. Ke2 {[%clk 0:01:32]} 27... f5 {[%clk
0:01:44.8]} 28. Kd2 {[%clk 0:01:28.5]} 28... Nf6 {[%clk 0:01:32.1]} 29. Ke1
{[%clk 0:01:03.3]} 29... h6 {[%clk 0:01:28.2]} 30. Bf1 {[%clk 0:01:02.4]} 30...
Bb6 {[%clk 0:01:22.3]} 31. Nfd2 {[%clk 0:01:01.5]} 31... g5 {[%clk 0:01:11.3]}
32. Nb1 {[%clk 0:00:56.8]} 32... Kf7 {[%clk 0:01:00.3]} 33. Nc3 {[%clk
0:00:56.5]} 33... e5 {[%clk 0:00:56.2]} 34. dxe5 {[%clk 0:00:55.7]} 34... dxe5
{[%clk 0:00:57.1]} 35. Na5 {[%clk 0:00:38.3]} 35... Bxa5 {[%clk 0:00:38.9]} 36.
bxa5 {[%clk 0:00:39.2]} 36... Ke6 {[%clk 0:00:39.5]} 37. Na2 {[%clk 0:00:38.9]}
37... Bb7 {[%clk 0:00:29.4]} 38. Nb4 {[%clk 0:00:38]} 38... Ne4 {[%clk
0:00:22.4]} 39. Bd3 {[%clk 0:00:31.4]} 39... Nc5 {[%clk 0:00:22.7]} 40. e4
{[%clk 0:00:10.7]} 40... Nxd3+ {[%clk 0:00:19.4]} 41. Nxd3 {[%clk 0:00:10.6]}
41... Bxe4 {[%clk 0:00:20.3]} 42. Nc5+ {[%clk 0:00:10.7]} 42... Kd5 {[%clk
0:00:13.4]} 43. Nxa6 {[%clk 0:00:10.9]} 43... Bxg2 {[%clk 0:00:13.7]} 44. Ke2
{[%clk 0:00:11.4]} 44... g4 {[%clk 0:00:13.4]} 45. Ke3 {[%clk 0:00:09]} 45...
Kd6 {[%clk 0:00:12.4]} 46. Nb4 {[%clk 0:00:08.9]} 46... h5 {[%clk 0:00:12.2]}
47. a6 {[%clk 0:00:04.7]} 47... Ba8 {[%clk 0:00:10.3]} 48. Nd3 {[%clk
0:00:04.3]} 48... Be4 {[%clk 0:00:08.4]} 49. a7 {[%clk 0:00:04.4]} 49... Ba8
{[%clk 0:00:08.3]} 50. Ke2 {[%clk 0:00:04.5]} 50... Kd5 {[%clk 0:00:07.4]} 51.
Ke3 {[%clk 0:00:03.6]} 51... Bb7 {[%clk 0:00:06.7]} 52. Nb4+ {[%clk 0:00:02.1]}
52... Kc4 {[%clk 0:00:03.7]} 53. Nd3 {[%clk 0:00:03]} 53... Kd5 {[%clk
0:00:03.6]} 54. Nb4+ {[%clk 0:00:03.5]} 54... Kd6 {[%clk 0:00:04.2]} 55. Nd3
{[%clk 0:00:04.4]} 55... Ba8 {[%clk 0:00:04.4]} 56. Nb4 {[%clk 0:00:04.8]} 56...
Kc7 {[%clk 0:00:04]} 57. Nd3 {[%clk 0:00:05]} 57... f4+ {[%clk 0:00:03.8]} 58.
Kd2 {[%clk 0:00:03.5]} 58... fxg3 {[%clk 0:00:02.1]} 59. fxg3 {[%clk 0:00:03.8]}
59... Kb6 {[%clk 0:00:02.1]} 60. Nxe5 {[%clk 0:00:04]} 60... Kxa7 {[%clk
0:00:02.6]} 61. Ng6 {[%clk 0:00:03.3]} 61... Kb6 {[%clk 0:00:02.6]} 62. Nf4
{[%clk 0:00:03.4]} 62... h4 {[%clk 0:00:02.4]} 63. gxh4 {[%clk 0:00:03.9]} 63...
g3 {[%clk 0:00:03]} 64. Ke3 {[%clk 0:00:03.3]} 64... Ka5 {[%clk 0:00:01.4]} 65.
h5 {[%clk 0:00:03.8]} 65... g2 {[%clk 0:00:01.8]} 66. Nxg2 {[%clk 0:00:03.7]}
1-0